bitfinex-derivatives/quotes_SOLF0:USTF0_20250830
["timestamp","ask_amount","ask_price","bid_price","bid_amount"]
[1756548680239,2.89228793,202.88,202.84,7.46]
[1756548680630,2.89228793,202.88,202.82,11.56917643]
[1756548680830,3.49,202.91,202.82,11.56917643]
[1756548681036,2.89228793,202.89,202.82,11.56917643]
[1756548683239,2.89228793,202.89,202.82,7.46]
[1756548685636,2.89228793,202.86,202.82,7.46]
[1756548685837,6.42228793,202.86,202.78,4.10917643]
[1756548686042,2.89228793,202.86,202.79,7.46]
[1756548688739,2.89228793,202.98,202.79,7.46]
[1756548688740,3.53,202.93,202.82,7.46]
[1756548688943,2.89228793,202.91,202.82,7.46]
[1756548695352,3.53,202.9,202.82,7.46]
[1756548698846,2.89228793,202.91,202.82,7.46]
[1756548701152,2.89228793,202.91,202.82,11.56917643]
[1756548702958,3.53,202.9,202.82,11.56917643]
[1756548703156,3.53,202.9,202.84,7.62]
[1756548704263,3.53,202.93,202.84,12.0566]
[1756548704565,6.42228793,202.98,202.88,7.62]
[1756548706858,3.53,202.98,202.88,7.62]
[1756548707054,6.42228793,202.98,202.88,7.62]
[1756548707357,6.42228793,202.98,202.88,11.72917643]
[1756548708958,3.53,202.98,202.88,11.72917643]
[1756548709160,2.89228793,202.97,202.88,11.72917643]
[1756548710654,2.89228793,202.94,202.88,7.62]
[1756548710855,3.53,202.93,202.88,7.62]
[1756548711564,2.89228793,202.94,202.88,7.62]
[1756548711763,6.42228793,202.94,202.88,7.62]
[1756548713259,6.42228793,202.94,202.86,4.10917643]
[1756548713461,6.42228793,202.94,202.85,11.72917643]
[1756548713660,6.42228793,202.94,202.85,7.62]
[1756548714256,6.42228793,202.94,202.85,11.72917643]
[1756548715966,2.89228793,202.91,202.85,11.72917643]
[1756548717267,2.89228793,202.93,202.86,7.62]
[1756548718469,6.42228793,202.98,202.89,7.62]
[1756548718664,2.89228793,202.98,202.92,4.10917643]
[1756548718860,2.89228793,203.01,202.93,7.62]
[1756548719966,2.89228793,203.01,202.92,4.10917643]
[1756548719967,2.89228793,203.01,202.95,7.62]
[1756548720369,2.89228793,203.01,202.95,11.72917643]
[1756548720570,2.89228793,203.01,202.95,7.62]
[1756548721169,2.89228793,203.01,202.95,11.72917643]
[1756548721464,331.24,203.03,202.96,11.72917643]
[1756548722369,331.24,203.03,202.96,7.62]
[1756548724169,3.53,203.02,202.96,7.62]
[1756548724377,3.53,203.0,202.96,7.62]
[1756548724570,3.53,202.97,202.92,11.72917643]
[1756548724770,2.89228793,202.98,202.92,11.72917643]
[1756548724771,6.42228793,202.98,202.92,11.72917643]
[1756548725878,6.42228793,202.98,202.92,7.62]
[1756548728375,2.89228793,202.95,202.91,4.10917643]
[1756548728577,3.52,202.94,202.89,4.10917643]
[1756548728783,2.89228793,202.95,202.84,15.61499293]
[1756548728784,3.52,202.92,202.88,7.59]
[1756548729881,125.49228793,202.93,202.87,7.59]
[1756548730881,125.49228793,202.93,202.87,11.69917643]
[1756548732782,129.01228793,202.93,202.86,4.10917643]
[1756548733879,3.52,202.99,202.87,7.59]
[1756548734178,331.24,203.03,202.87,7.59]
[1756548734179,334.13228793,203.03,202.93,4.10917643]
[1756548734485,364.37228793,203.03,202.94,4.10917643]
[1756548735482,337.65228793,203.03,202.94,11.69917643]
[1756548735683,123.1,203.02,202.95,7.59]
[1756548739683,334.76,203.03,202.95,7.59]
[1756548739889,123.0,203.01,202.95,7.59]
[1756548741394,3.54,203.0,202.94,4.10917643]
[1756548741593,3.54,203.0,202.93,4.10917643]
[1756548744890,122.92,203.02,202.94,11.69917643]
[1756548745098,331.24,203.03,202.96,7.59]
[1756548745296,122.9,203.03,202.97,4.10917643]
[1756548746089,122.9,203.03,202.99,7.59]
[1756548746795,122.9,203.03,202.98,7.59]
[1756548747094,6.43228793,203.02,202.94,4.10917643]
[1756548748597,3.54,203.02,202.95,4.10917643]
[1756548750098,3.54,203.02,202.95,11.69917643]
[1756548751697,122.92,203.05,202.97,11.69917643]
[1756548751895,122.92,203.06,202.97,11.69917643]
[1756548753002,3.54,203.05,202.97,11.69917643]
[1756548753399,3.54,203.05,202.97,7.59]
[1756548755104,6.43228793,203.05,202.97,7.59]
[1756548760104,6.43228793,203.05,202.97,11.69917643]
[1756548761609,6.43228793,203.05,202.98,4.10917643]
[1756548762610,6.43228793,203.05,202.97,11.69917643]
[1756548763409,6.43228793,203.05,202.98,4.10917643]
[1756548765008,3.54,203.05,202.99,7.57]
[1756548765209,122.92,203.06,202.99,11.67917643]
[1756548765411,6.41228793,203.08,203.0,7.57]
[1756548765806,6.41228793,203.08,203.01,7.57]
[1756548767108,6.41228793,203.08,203.01,11.67917643]
[1756548767506,3.52,203.08,203.02,11.67917643]
[1756548767710,122.46,203.09,203.02,11.67917643]
[1756548768309,2.89228793,203.14,203.04,7.57]
[1756548768515,2.89228793,203.14,203.05,11.67917643]
[1756548770415,2.89228793,203.14,203.05,7.57]
[1756548771515,456.51228793,203.15,203.05,7.57]
[1756548771719,3.52,203.11,203.05,7.57]
[1756548773118,3.52,203.11,203.03,4.10917643]
[1756548773517,2.89228793,203.09,203.02,7.57]
[1756548773721,6.41228793,203.09,203.02,7.57]
[1756548777325,3.52,203.09,203.02,7.57]
[1756548778726,3.52,203.09,203.02,11.67917643]
[1756548781830,2.89228793,203.1,203.03,11.67917643]
[1756548783428,6.41228793,203.1,203.03,11.67917643]
[1756548783626,6.41228793,203.1,203.03,7.57]
[1756548784026,6.41228793,203.1,203.03,11.67917643]
[1756548784432,331.99717453,203.15,203.04,7.57]
[1756548784626,334.03228793,203.15,203.04,14.57146436]
[1756548784833,3.52,203.14,203.06,4.10917643]
[1756548785033,3.52,203.11,203.05,4.10917643]
[1756548785233,3.52,203.11,203.04,11.67917643]
[1756548785428,3.52,203.11,203.04,7.57]
[1756548786332,3.52,203.08,203.04,7.57]
[1756548786636,2.89228793,203.09,203.04,7.57]
[1756548786931,3.52,203.08,203.04,7.57]
[1756548787132,3.55,203.08,203.04,7.57]
[1756548787433,3.55,203.08,203.02,11.96917643]
[1756548789930,2.89228793,203.09,203.02,4.10917643]
[1756548790135,3.55,203.05,202.98,11.96917643]
[1756548790828,2.89228793,203.03,202.98,7.86]
[1756548791336,3.55,203.02,202.98,7.86]
[1756548792234,2.89228793,203.03,202.98,7.86]
[1756548792631,2.89228793,203.03,202.95,11.96917643]
[1756548792632,3.55,203.02,202.95,11.96917643]
[1756548793138,3.55,203.02,202.92,5.49026524]
[1756548793139,2.89228793,203.0,202.94,11.96917643]
[1756548794736,2.89228793,203.0,202.95,4.10917643]
[1756548794936,2.89228793,203.0,202.96,7.86]
[1756548795241,2.89228793,203.0,202.95,4.10917643]
[1756548795832,2.89228793,203.0,202.96,7.86]
[1756548796239,6.44228793,203.0,202.96,7.86]
[1756548796538,6.44228793,203.0,202.93,7.86]
[1756548796930,6.44228793,202.97,202.93,7.86]
[1756548797435,2.89228793,202.97,202.92,4.10917643]
[1756548797633,2.89228793,202.97,202.93,7.86]
[1756548797839,2.89228793,202.97,202.92,4.10917643]
[1756548798236,2.89228793,202.97,202.92,7.86]
[1756548798741,2.89228793,202.97,202.92,4.10917643]
[1756548799139,2.89228793,202.97,202.91,4.10917643]
[1756548799340,2.89228793,202.97,202.92,7.86]
[1756548799539,2.89228793,202.97,202.91,4.10917643]
[1756548800040,2.89228793,202.97,202.91,11.96917643]
[1756548800240,6.41228793,202.97,202.91,7.86]
[1756548801836,6.41228793,202.97,202.88,4.10917643]
[1756548802147,6.41228793,202.97,202.87,11.96917643]
[1756548803245,6.41228793,202.97,202.88,7.86]
[1756548805047,15.53228793,202.97,202.88,7.86]
[1756548805752,2.89228793,202.94,202.88,7.86]
[1756548809948,17.69228793,203.1,202.88,7.86]
[1756548810156,2.89228793,202.97,202.88,7.86]
[1756548812547,6.41228793,202.94,202.88,7.86]
[1756548818554,2.89228793,202.99,202.89,7.66]
[1756548819452,5.50375515,203.13,202.9,2.89228793]
[1756548819658,2.89228793,203.04,202.94,7.66]
[1756548819853,6.42228793,203.04,202.94,7.66]
[1756548822260,2.89228793,203.01,202.94,7.66]
[1756548823862,3.53,203.0,202.91,7.66]
[1756548824055,2.89228793,202.98,202.91,7.66]
[1756548824255,3.53,202.97,202.91,7.66]
[1756548827662,6.42228793,202.97,202.91,7.66]
[1756548827864,2.89228793,202.99,202.91,7.66]
[1756548830061,3.53,203.01,202.91,7.66]
[1756548830260,2.89228793,202.98,202.91,7.66]
[1756548832465,6.42228793,202.98,202.91,7.66]
[1756548835370,6.42228793,202.98,202.91,11.76917643]
[1756548836062,2.89228793,202.98,202.91,7.66]
[1756548836267,3.53,202.97,202.91,7.66]
[1756548838367,2.89228793,202.95,202.91,7.66]
[1756548838568,6.42228793,202.95,202.88,11.76917643]
[1756548839169,2.89228793,202.98,202.87,4.10917643]
[1756548839367,2.89228793,202.9,202.88,7.66]
[1756548841970,2.89228793,202.9,202.87,4.10917643]
[1756548841971,6.42228793,202.9,202.87,4.10917643]
[1756548842269,2.89228793,202.9,202.87,7.66]
[1756548842571,2.89228793,202.9,202.86,4.10917643]
[1756548843174,2.89228793,202.9,202.87,7.66]
[1756548843365,2.89228793,202.9,202.86,4.10917643]
[1756548843771,2.89228793,202.9,202.87,7.66]
[1756548843971,2.89228793,202.9,202.86,4.10917643]
[1756548844163,2.89228793,202.9,202.87,7.66]
[1756548844364,2.89228793,202.9,202.86,4.10917643]
[1756548844573,2.89228793,202.9,202.87,7.66]
[1756548844772,2.89228793,202.9,202.86,4.10917643]
[1756548845072,2.89228793,202.9,202.87,7.66]
[1756548847071,2.89228793,202.9,202.86,4.10917643]
[1756548848679,2.89228793,202.9,202.87,7.85]
[1756548848880,6.42228793,202.9,202.85,4.10917643]
[1756548849080,3.53,202.89,202.85,4.10917643]
[1756548849280,2.89228793,202.9,202.85,4.10917643]
[1756548849882,2.89228793,202.9,202.86,7.85]
[1756548850179,2.89228793,202.92,202.85,7.85]
[1756548850383,2.89228793,202.92,202.85,11.95917643]
[1756548856392,2.89228793,202.98,202.86,7.85]
[1756548856393,3.53,202.97,202.86,7.85]
[1756548856685,2.89228793,202.94,202.87,7.85]
[1756548858083,2.89228793,202.94,202.87,11.95917643]
[1756548858483,2.89228793,202.94,202.87,4.10917643]
[1756548858785,2.89228793,202.94,202.88,7.85]
[1756548866692,2.89228793,202.94,202.88,11.95917643]
[1756548868089,2.89228793,202.94,202.89,7.85]
[1756548868486,3.54,202.95,202.89,7.85]
[1756548868691,111.1,202.97,202.89,7.85]
[1756548869092,129.73015977,202.98,202.89,4.10917643]
[1756548869293,129.73015977,202.98,202.9,7.85]
[1756548869793,129.73015977,202.98,202.9,11.95917643]
[1756548870095,2.89228793,202.97,202.91,7.85]
[1756548870295,2.89228793,202.97,202.91,11.95917643]
[1756548870892,3.54,202.98,202.92,4.10917643]
[1756548871398,3.54,202.98,202.93,7.85]
[1756548871696,3.54,202.98,202.92,4.10917643]
[1756548871893,128.87228793,202.99,202.92,11.95917643]
[1756548872394,6.43228793,202.99,202.92,11.95917643]
[1756548872594,128.85228793,202.99,202.92,11.95917643]
[1756548873996,128.85228793,202.99,202.92,7.85]
[1756548874192,128.85228793,202.99,202.92,11.95917643]
[1756548874494,128.85228793,202.99,202.92,7.85]
[1756548875094,128.85228793,202.99,202.92,11.95917643]
[1756548875395,128.85228793,202.99,202.92,7.85]
[1756548876192,128.85228793,202.99,202.92,11.95917643]
[1756548876991,125.31228793,202.99,202.92,11.95917643]
[1756548877196,3.51,202.98,202.92,11.95917643]
[1756548877495,5.35631715,202.96,202.92,4.10917643]
[1756548877797,5.35631715,202.96,202.93,7.62]
[1756548880604,5.35631715,202.94,202.88,11.72917643]
[1756548880898,1.84631715,202.92,202.89,4.10917643]
[1756548881098,1.84631715,202.92,202.9,7.62]
[1756548881301,3.51,202.94,202.9,7.62]
[1756548881902,3.51,202.94,202.89,4.10917643]
[1756548882496,3.51,202.94,202.9,7.62]
[1756548882703,3.51,202.94,202.89,4.10917643]
[1756548882900,3.51,202.94,202.9,7.62]
[1756548883199,3.51,202.94,202.89,4.10917643]
[1756548883597,3.51,202.94,202.9,7.62]
[1756548883994,3.51,202.94,202.9,4.10917643]
[1756548884205,3.51,202.94,202.91,7.62]
[1756548887412,2.88596259,202.92,202.88,4.10917643]
[1756548887612,3.51,202.91,202.87,11.72917643]
[1756548888009,3.51,202.91,202.87,7.62]
[1756548889314,39.82596259,202.92,202.87,7.62]
[1756548889710,2.88596259,202.89,202.84,11.72917643]
[1756548889913,2.88596259,202.86,202.84,7.62]
[1756548890113,2.88596259,202.86,202.82,7.62]
[1756548890114,6.39596259,202.86,202.82,7.62]
[1756548890512,2.88596259,202.86,202.82,7.62]
[1756548890819,3.51,202.85,202.82,7.62]
[1756548892016,3.51,202.85,202.8,4.10917643]
[1756548892211,2.88596259,202.83,202.79,4.10917643]
[1756548892413,2.88596259,202.83,202.8,7.62]
[1756548892612,3.51,202.82,202.79,11.72917643]
[1756548892813,2.88596259,202.83,202.8,7.62]
[1756548893112,2.88596259,202.83,202.79,4.10917643]
[1756548893411,2.88596259,202.9,202.8,7.62]
[1756548893611,2.88596259,202.86,202.8,7.62]
[1756548896518,2.88596259,202.86,202.8,11.72917643]
[1756548898223,2.88596259,202.86,202.8,7.62]
[1756548902718,3.51,202.85,202.8,7.62]
[1756548902920,2.88596259,202.86,202.8,7.62]
[1756548903225,3.51,202.82,202.78,7.62]
[1756548903424,6.39596259,202.8,202.78,7.62]
[1756548903920,2.88596259,202.8,202.78,7.62]
[1756548904528,2.88596259,202.86,202.74,7.62]
[1756548904721,2.88596259,202.86,202.78,7.62]
[1756548905219,2.88596259,202.83,202.76,4.10917643]
[1756548905424,2.88596259,202.83,202.77,7.62]
[1756548906525,6.39596259,202.83,202.77,7.62]
[1756548907822,3.53,202.96,202.77,7.62]
[1756548908022,8.25528994,203.0,202.79,7.97]
[1756548908023,2.88596259,202.9,202.79,7.97]
[1756548908219,2.88596259,202.86,202.8,7.97]
[1756548912125,3.53,202.85,202.8,7.97]
[1756548912324,2.88596259,202.83,202.77,7.97]
[1756548913029,2.88596259,202.84,202.77,7.97]
[1756548920031,20.4,202.92,202.79,2.88596259]
[1756548920233,2.88596259,202.9,202.81,7.97]
[1756548921429,2.88596259,202.93,202.83,7.97]
[1756548921631,28.2,202.96,202.84,7.97]
[1756548921836,31.08596259,202.96,202.84,7.97]
[1756548922031,31.08596259,202.96,202.84,12.07917643]
[1756548922335,31.08596259,202.96,202.86,7.97]
[1756548922836,31.08596259,202.96,202.87,7.97]
[1756548924435,31.08596259,202.96,202.88,7.97]
[1756548928639,28.2,202.96,202.89,7.97]
[1756548929836,3.52,202.96,202.89,7.97]
[1756548930036,2.88596259,202.99,202.89,7.97]
[1756548931237,334.76,203.03,202.92,7.97]
[1756548931540,334.76,203.03,202.93,7.97]
[1756548932344,3.52,203.07,202.97,2.88596259]
[1756548932546,3.52,203.07,202.98,7.97]
[1756548939244,29.46596259,203.08,202.98,7.97]
[1756548939548,3.53,203.04,202.98,7.97]
[1756548939751,3.53,203.07,202.98,7.97]
[1756548942758,6.41596259,203.07,202.98,7.97]
[1756548943152,3.53,203.07,202.98,7.97]
[1756548943659,2.88596259,203.08,202.98,7.97]
[1756548943857,3.53,203.07,202.98,7.97]
[1756548945460,6.41596259,203.07,202.98,7.97]
[1756548946063,3.53,203.11,203.01,2.88596259]
[1756548946260,3.53,203.11,203.02,7.84]
[1756548948959,2.88596259,203.13,203.02,7.84]
[1756548949158,2.88596259,203.13,203.05,7.84]
[1756548949358,334.79,203.15,203.05,7.84]
[1756548953262,331.26,203.15,203.05,7.84]
[1756548953668,3.53,203.14,203.05,7.84]
[1756548955969,3.53,203.14,203.07,7.84]
[1756548961065,331.26,203.15,203.02,10.72596259]
[1756548961066,3.53,203.12,203.02,10.72596259]
[1756548962774,124.96596259,203.13,203.02,10.72596259]
[1756548963073,3.53,203.12,203.02,2.88596259]
[1756548963273,3.53,203.12,203.03,7.84]
[1756548964875,122.06,203.12,203.06,7.84]
[1756548965081,122.06,203.14,203.06,7.84]
[1756548966174,122.06,203.14,203.08,2.88596259]
[1756548966381,122.06,203.14,203.08,10.72596259]
[1756548969383,331.26,203.15,203.08,10.72596259]
[1756548969677,453.3,203.15,203.08,10.72596259]
[1756548969880,122.04,203.14,203.08,7.84]
[1756548971278,125.57,203.14,203.08,7.84]
[1756548973478,3.53,203.13,203.08,7.84]
[1756548973679,125.57,203.14,203.08,7.84]
[1756548977885,125.57,203.14,203.08,11.94917643]
[1756548981891,125.57,203.14,203.08,7.84]
[1756548982693,122.04,203.14,203.07,4.10917643]
[1756548982893,3.52,203.13,203.07,4.10917643]
[1756548985389,3.52,203.13,203.05,4.10917643]
[1756548985696,121.98,203.12,203.05,11.48917643]
[1756548986496,121.98,203.12,203.06,4.10917643]
[1756548986695,3.52,203.11,203.06,4.10917643]
[1756548986994,3.52,203.11,203.05,11.48917643]
[1756548988298,3.52,203.11,203.06,4.10917643]
[1756548988498,125.5,203.12,203.06,4.10917643]
[1756548990291,125.5,203.12,203.07,4.10917643]
[1756548990494,3.52,203.11,203.07,4.10917643]
[1756548990697,121.98,203.12,203.07,4.10917643]
[1756548990896,3.52,203.11,203.07,4.10917643]
[1756548991292,121.98,203.12,203.07,4.10917643]
[1756548991498,3.52,203.11,203.07,4.10917643]
[1756548991697,121.98,203.12,203.07,4.10917643]
[1756548991895,3.52,203.11,203.07,4.10917643]
[1756548992097,121.98,203.12,203.07,4.10917643]
[1756548992395,0.85706897,203.18,203.07,11.48917643]
[1756548992601,3.52,203.14,203.08,4.10917643]
[1756548992802,2.88596259,203.15,203.09,4.10917643]
[1756548993001,6.40596259,203.15,203.09,4.10917643]
[1756548993201,3.52,203.15,203.1,4.10917643]
[1756548993399,3.52,203.15,203.11,11.48917643]
[1756548993599,28.68,203.17,203.1,4.10917643]
[1756548993796,3.52,203.16,203.1,4.10917643]
[1756548994002,3.52,203.14,203.1,4.10917643]
[1756548994196,3.52,203.14,203.09,4.10917643]
[1756548995000,3.52,203.16,203.1,4.10917643]
[1756548995400,3.52,203.16,203.11,4.10917643]
[1756548996000,28.68,203.17,203.11,4.10917643]
[1756548996704,3.52,203.18,203.11,11.48917643]
[1756548996901,55.34,203.18,203.12,4.10917643]
[1756548997607,3.52,203.18,203.12,4.10917643]
[1756548997905,77.58,203.19,203.13,4.10917643]
[1756548998409,3.52,203.18,203.13,4.10917643]
[1756548998802,77.58,203.19,203.13,4.10917643]
[1756548999002,3.52,203.18,203.13,4.10917643]
[1756548999205,77.58,203.19,203.13,4.10917643]
[1756548999904,3.52,203.18,203.13,4.10917643]
[1756549000104,2.88596259,203.17,203.12,4.10917643]
[1756549000409,2.88596259,203.17,203.06,10.91095552]
[1756549000410,3.52,203.16,203.1,4.10917643]
[1756549002509,6.40596259,203.17,203.11,4.10917643]
[1756549004307,3.52,203.17,203.11,4.10917643]
[1756549004510,3.52,203.19,203.12,7.3]
[1756549004713,3.52,203.19,203.13,4.10917643]
[1756549005010,3.52,203.19,203.12,11.40917643]
[1756549007312,3.52,203.19,203.12,4.10917643]
[1756549007510,128.30596259,203.23,203.13,11.40917643]
[1756549007717,128.30596259,203.23,203.14,11.40917643]
[1756549008117,3.52,203.22,203.14,11.40917643]
[1756549014019,6.40596259,203.19,203.14,4.10917643]
[1756549014227,6.40596259,203.19,203.15,7.3]
[1756549015222,6.40596259,203.19,203.14,4.10917643]
[1756549015428,6.40596259,203.19,203.15,7.3]
[1756549016030,6.40596259,203.19,203.13,4.10917643]
[1756549016225,6.40596259,203.19,203.14,7.3]
[1756549016432,6.40596259,203.19,203.13,4.10917643]
[1756549016732,6.40596259,203.19,203.14,7.3]
[1756549017430,6.40596259,203.19,203.14,4.10917643]
[1756549017632,6.40596259,203.19,203.15,7.3]
[1756549017830,6.40596259,203.22,203.15,7.3]
[1756549018232,3.52,203.22,203.15,7.3]
[1756549018834,3.52,203.22,203.16,4.10917643]
[1756549019034,3.52,203.22,203.17,7.3]
[1756549019339,128.26596259,203.25,203.17,7.3]
[1756549021734,125.38,203.25,203.17,7.3]
[1756549021935,2.88596259,203.24,203.17,7.3]
[1756549022135,125.38,203.25,203.17,7.3]
[1756549022331,128.26596259,203.25,203.17,7.3]
[1756549024941,124.74596259,203.25,203.17,7.3]
[1756549025141,3.52,203.24,203.17,7.3]
[1756549025544,121.86,203.25,203.13,11.40917643]
[1756549025744,3.52,203.18,203.11,4.10917643]
[1756549026043,3.52,203.18,203.1,11.40917643]
[1756549027134,6.40596259,203.18,203.1,11.40917643]
[1756549029645,6.40596259,203.18,203.1,7.3]
[1756549030544,6.40596259,203.18,203.1,11.40917643]
[1756549033448,0.85671028,203.24,203.12,7.24]
[1756549033648,6.41596259,203.2,203.12,11.34917643]
[1756549033849,6.41596259,203.2,203.12,7.24]
[1756549034649,3.53,203.19,203.12,7.24]
[1756549035349,3.53,203.16,203.12,7.24]
[1756549035549,2.88596259,203.17,203.12,7.24]
[1756549036049,3.53,203.16,203.1,4.0780605]
[1756549036249,6.41596259,203.16,203.1,4.0780605]
[1756549036845,3.53,203.15,203.09,11.3180605]
[1756549037245,3.53,203.18,203.11,7.24]
[1756549037450,6.41596259,203.18,203.11,7.24]
[1756549037948,6.41596259,203.18,203.11,11.3180605]
[1756549038445,3.53,203.18,203.12,7.24]
[1756549039953,3.53,203.18,203.12,11.3180605]
[1756549040649,2.88596259,203.23,203.15,4.0780605]
[1756549041353,2.88596259,203.23,203.16,11.3180605]
[1756549041854,3.5,203.24,203.17,7.24]
[1756549043151,3.5,203.24,203.17,11.3228537]
[1756549045354,3.5,203.24,203.18,7.24]
[1756549046260,2.88596259,203.23,203.18,7.24]
[1756549046458,3.5,203.22,203.18,7.24]
[1756549046958,2.88596259,203.23,203.18,7.24]
[1756549047160,3.5,203.22,203.18,7.24]
[1756549049458,3.5,203.22,203.14,4.07863392]
[1756549049760,3.5,203.22,203.15,7.24]
[1756549051160,3.5,203.22,203.15,11.31863392]
[1756549051367,4.35668919,203.25,203.17,7.24]
[1756549051661,125.28,203.25,203.17,11.31863392]
[1756549051962,125.28,203.25,203.18,7.24]
[1756549052362,125.28,203.25,203.19,7.24]
[1756549057068,125.28,203.25,203.19,11.32347539]
[1756549057671,3.52,203.23,203.16,4.08347539]
[1756549057866,3.52,203.23,203.13,12.95026524]
[1756549057867,3.52,203.23,203.15,4.08347539]
[1756549058061,3.52,203.23,203.15,11.54347539]
[1756549058267,6.40596259,203.23,203.16,4.08347539]
[1756549058663,2.88596259,203.23,203.16,4.08347539]
[1756549058868,3.52,203.27,203.19,4.08347539]
[1756549059069,3.52,203.27,203.18,4.08347539]
[1756549059070,2.88596259,203.26,203.18,4.08347539]
[1756549059571,2.88596259,203.26,203.19,4.08347539]
[1756549060271,2.88596259,203.26,203.19,11.54347539]
[1756549060869,2.88596259,203.26,203.2,4.08347539]
[1756549061370,3.52,203.27,203.2,7.46]
[1756549061571,2.88596259,203.29,203.21,11.54347539]
[1756549061772,2.88596259,203.29,203.22,7.46]
[1756549062274,2.88596259,203.29,203.22,11.54347539]
[1756549062968,6.40596259,203.3,203.22,11.54347539]
[1756549063167,3.52,203.3,203.22,11.54347539]
[1756549063377,6.40596259,203.3,203.22,11.54347539]
[1756549063571,3.52,203.3,203.22,11.54347539]
[1756549063773,6.40596259,203.3,203.22,11.54347539]
[1756549064672,3.52,203.3,203.22,11.54347539]
[1756549065975,3.52,203.3,203.23,7.46]
[1756549068375,3.52,203.39,203.23,7.46]
[1756549068678,3.52,203.33,203.25,7.46]
[1756549068876,6.40596259,203.33,203.25,7.46]
[1756549070479,3.52,203.37,203.28,4.08347539]
[1756549070676,3.52,203.37,203.29,7.46]
[1756549070882,2.88596259,203.38,203.29,7.46]
[1756549071183,41.9,203.39,203.29,10.34596259]
[1756549071482,41.9,203.39,203.3,7.46]
[1756549073978,3.52,203.38,203.3,7.46]
[1756549074187,3.52,203.36,203.3,7.46]
[1756549076785,2.88596259,203.36,203.3,7.46]
[1756549077484,3.52,203.37,203.3,7.46]
[1756549077690,6.40596259,203.37,203.3,7.46]
[1756549079287,3.52,203.36,203.3,7.46]
[1756549081489,63.58,203.38,203.3,7.46]
[1756549081490,2.88596259,203.34,203.3,7.46]
[1756549081682,6.40596259,203.34,203.25,7.46]
[1756549082687,2.88596259,203.31,203.25,7.46]
[1756549084582,2.88596259,203.3,203.22,7.46]
[1756549085790,3.52,203.26,203.22,7.46]
[1756549086383,2.88596259,203.24,203.18,7.46]
[1756549086582,3.52,203.23,203.18,7.46]
[1756549086792,2.88596259,203.22,203.15,7.46]
[1756549087286,2.88596259,203.22,203.16,7.98]
[1756549088988,20.96596259,203.3,203.12,7.98]
[1756549088989,2.88596259,203.19,203.12,7.98]
[1756549091491,3.49,203.21,203.09,7.98]
[1756549091492,2.88596259,203.16,203.09,7.98]
[1756549092592,3.49,203.17,203.09,7.98]
[1756549092893,2.88596259,203.16,203.09,7.98]
[1756549094097,2.88596259,203.13,203.07,7.98]
[1756549097985,3.49,203.23,203.11,2.88596259]
[1756549098199,6.37596259,203.23,203.12,12.06347539]
[1756549098392,6.37596259,203.23,203.13,7.98]
[1756549105101,6.37596259,203.23,203.13,2.88596259]
[1756549105299,6.37596259,203.23,203.14,7.98]
[1756549109003,3.49,203.23,203.14,7.98]
[1756549111898,2.88596259,203.24,203.14,7.98]
[1756549112104,3.52,203.23,203.14,7.98]
[1756549114302,6.40596259,203.23,203.14,7.98]
[1756549116002,3.52,203.23,203.14,7.98]
[1756549116202,6.40596259,203.23,203.14,7.98]
[1756549117999,3.51,203.22,203.14,7.98]
[1756549126315,3.51,203.22,203.14,12.06347539]
[1756549127911,3.51,203.22,203.14,7.98]
[1756549128312,3.51,203.22,203.14,12.06347539]
[1756549128714,3.51,203.22,203.15,7.49]
[1756549130517,3.51,203.22,203.15,11.57347539]